{"text_format":"1","workbook":"xlsx","n_sheets":2,"sheets":["Каталог","Лист1"],"not_rendered":{"charts":0,"images":0,"macros":1,"external_links":1,"defined_names":14,"comments":0,"pivot_tables":0},"unopened":[],"bounds":{"document_bytes":16777216,"sheet_cells":100000,"rows_first":2000,"rows_last":500,"rows_between":2000,"halvings":0,"cell_chars":16384,"cell_head_chars":4096},"cells_cut":0,"cells_raw":0,"read":"whole","date_system":"1900"}

{"sheet":"Каталог","index":0,"n_rows":27,"n_cols":22,"rows_kept":27,"cut":false,"hidden":false,"merged":[[0,1,0,7]]}
[null,{"$f":"\"ЭЛЕМЕНТ \"  & I1","v":"ЭЛЕМЕНТ Прямоугольный"},null,null,null,null,null,null,"Прямоугольный",null,"Прямоугольный","Круглый","Ромбовидный","Полукруглый"]
["Наименование","длина изделия  м.п.","Покрытие","Кол-во","Рекомендуемое \nкол-во","Цена  руб","Цена со скидкой","Сумма  руб","красный",null,"палка 1вид","планка","пластина","панель"]
["палка 1вид",1.5,{"$f":"I2","v":"красный"},10,null,{"$f":"IFERROR(INDEX(Q:V,MATCH(I$1,P:P,)+MATCH(C3,P$6:P$9,),MATCH(A3,INDEX(Q:V,MATCH(I$1,P:P,),),)),)","v":368},{"$f":"F3*(1-$F$13)","v":368},{"$f":"G3*D3","v":3680},null,null,"палка 2 вид","панель обратная","пластина спиральная","трехгранник"]
["палка 1вид",2,{"$f":"I2","v":"красный"},10,null,{"$f":"IFERROR(INDEX(Q:V,MATCH(I$1,P:P,)+MATCH(C4,P$6:P$9,),MATCH(A4,INDEX(Q:V,MATCH(I$1,P:P,),),)),)","v":368},368,3680,null,null,"палка 3 вид","панель лицевая","пластина наклонная","трехгаранник основной"]
["палка 1вид",2.5,{"$f":"I2","v":"красный"},10,null,368,368,3680,null,null,"накладка 23-*25","круг диаметром 7м","накладка прямая 7мм","винт",null,"прямоугольный","палка 1вид","палка 2 вид","палка 3 вид","накладка 23-*25","накладка универсальная","накладка прямая"]
["накладка 23-*25",2.5,{"$f":"I2","v":"красный"},10,null,241,241,2410,null,null,"накладка универсальная","крышка","планка ","шпилька",null,"красный",368,368,368,241,241,324]
["накладка универсальная",2.5,{"$f":"I2","v":"красный"},10,null,241,241,2410,null,null,"накладка прямая","крыло","крыло","крыло",null,"желтый",312,312,312,206,206,275]
["накладка прямая",2,{"$f":"I2","v":"красный"},10,null,324,324,3240,null,null,null,null,null,null,null,"зеленый","-",286,286,189,189,253]
["панель обратная",1,{"$f":"I2","v":"красный"},10,null,0,0,0,null,null,null,null,null,null,null,"синий",241,241,241,160,160,213]
[null,null,{"$f":"I2","v":"красный"},null,null,0,{"$f":"F10*(1-$F$13)","v":0},0]
[null,null,{"$f":"I2","v":"красный"},null,null,0,0,0,null,null,null,null,null,null,null,"круглый","планка","панель обратная","панель лицевая","круг диаметром 7м","крышка","крыло"]
[null,null,{"$f":"I2","v":"красный"},null,null,0,0,0,null,null,null,null,null,null,null,"красный",350,365,462,268,241,368]
[null,null,null,null,null,0,null,{"$f":"(H14/(1-F13))-H14","v":0},null,null,null,null,null,null,null,"желтый",311,492,136,423,206,258]
[null,null,null,null,null,null,{"$f":"\"Итого \"&B1&\":\"","v":"Итого ЭЛЕМЕНТ Прямоугольный:"},{"$f":"SUM(H3:H12)","v":19100},null,null,null,null,null,null,null,"зеленый","-",126,752,63,189,24]
[null,null,null,null,null,null,null,null,null,null,null,null,null,null,null,"синий",242,586,263,160,160,241]
[]
[null,null,null,null,null,null,null,null,null,null,null,null,null,null,null,"ромбовидный","пластина","пластина спиральная","пластина наклонная","накладка прямая 7мм","планка ","крыло"]
[null,null,null,null,null,null,null,null,null,null,null,null,null,null,null,"красный",200,360,370,240,241,330]
[null,null,null,null,null,null,null,null,null,null,null,null,null,null,null,"желтый",300,200,300,210,206,280]
[null,null,null,null,null,null,null,null,null,null,null,null,null,null,null,"зеленый","-",290,290,190,189,260]
[null,null,null,null,null,null,null,null,null,null,null,null,null,null,null,"синий",250,240,240,160,170,220]
[]
[null,null,null,null,null,null,null,null,null,null,null,null,null,null,null,"полукруглый","панель","трехгранник","трехгаранник основной","винт","шпилька","крыло"]
[null,null,null,null,null,null,null,null,null,null,null,null,null,null,null,"красный",350,365,462,268,241,368]
[null,null,null,null,null,null,null,null,null,null,null,null,null,null,null,"желтый",311,492,136,423,206,258]
[null,null,null,null,null,null,null,null,null,null,null,null,null,null,null,"зеленый","-",126,752,63,189,24]
[null,null,null,null,null,null,null,null,null,null,null,null,null,null,null,"синий",242,586,263,160,160,241]

{"sheet":"Лист1","index":1,"n_rows":0,"n_cols":0,"rows_kept":0,"cut":false,"hidden":false,"merged":[]}